Cogmind - Beta 16 @@@ ROGUE MODE // 2025.10.28 @ 20:27:29 Player: 0631 Result: Destroyed by S-10 Pest via exploding Fusion Modulator Performance ------------- Evolutions (2) 1000 Regions Visited (5) 1000 Robots Destroyed (10) 50 Value Destroyed (320) 320 Prototype IDs (0) 0 Alien Tech Used (0) 0 Bonus (300) 300 TOTAL SCORE: 2670 Bonus ------- Aligned with FarCom 300 Cogmind --------- Core Integrity 0/550 Matter 295/300 Energy 77/100 System Corruption 0% Temperature Cool (12) Movement Core (50) Location -8/Materials Parts ------- > --- POWER (3) -------- (None) > --- PROPULSION (2) --- (None) > --- UTILITY (3) ------ (None) > --- WEAPON (3) ------- (None) > --- INVENTORY (5) ---- Wheel Wheel Small Storage Unit Mining Laser Peak State ------------ > --- POWER ------------ Ion Engine Light Nuclear Core > --- PROPULSION ------- Aluminum Leg Titanium Leg > --- UTILITY ---------- Heat Sink Small Storage Unit Improved Sensor Array > --- WEAPON ----------- EM Pulse Gun Spread Laser EM Pulse Cannon > --- INVENTORY -------- Aluminum Leg Wheel Wheel Small Storage Unit Particle Gun Spread Laser Mining Laser [Rating: 19] Favorites ----------- Power Ion Engine Engine Ion Engine Power Core Light Nuclear Core Propulsion Aluminum Leg Leg Aluminum Leg Wheel Wheel Utility Small Storage Unit Device Heat Sink Storage Small Storage Unit Weapon Spread Laser Energy Gun Spread Laser Energy Cannon EM Pulse Cannon Ballistic Gun Assault Rifle Build | -11 -10 -10 -10 -9 -8 ------- Run | Yrd Mat Min Exi Min Mat Slots Evolved 4 | . . . . . 4 Power 2 | . . . . . 2 Propulsion . | . . . . . . Utility 1 | . . . . . 1 Weapon 1 | . . . . . 1 Parts Attached 19 | 6 4 . 3 . 6 Power 3 | 1 . . 2 . . Engine 2 | 1 . . 1 . . Core 1 | . . . 1 . . Reactor . | . . . . . . Propulsion 5 | 2 2 . . . 1 Treads . | . . . . . . Leg 3 | . 2 . . . 1 Wheel 2 | 2 . . . . . Hover . | . . . . . . Flight . | . . . . . . Utility 4 | 1 1 . 1 . 1 Device 2 | . 1 . . . 1 Storage 2 | 1 . . 1 . . Processor . | . . . . . . Hackware . | . . . . . . Protection . | . . . . . . Artifact . | . . . . . . Weapon 7 | 2 1 . . . 4 Energy Gun 5 | 1 1 . . . 3 Energy Cannon 1 | . . . . . 1 Ballistic Gun 1 | 1 . . . . . Ballistic Cannon . | . . . . . . Launcher . | . . . . . . Special Weapon . | . . . . . . Impact Weapon . | . . . . . . Slashing Weapon . | . . . . . . Piercing Weapon . | . . . . . . Special Melee Weapon . | . . . . . . Unidentified Prototypes . | . . . . . . Parts Lost 12 | . . . . . 12 Power 2 | . . . . . 2 Propulsion 3 | . . . . . 3 Utility 2 | . . . . . 2 Weapon 5 | . . . . . 5 Highest Loss Streak 11 | . . . . . 11 To Critical Strikes . | . . . . . . Average Backups 7 | 1 6 8 8 8 7 Power 1 | . . 1 2 2 . Propulsion 2 | 1 2 2 2 2 2 Utility 1 | . . 1 1 1 1 Weapon 2 | . 2 3 3 3 2 Tool/Special . | . . . . . . Unused Backups 8 | 1 3 1 . . 3 Power 3 | 1 1 . . . 1 Propulsion . | . . . . . . Utility 1 | . . . . . 1 Weapon 4 | . 2 1 . . 1 Tool/Special . | . . . . . . Average Slot Usage (%) 88 | . 95 100 100 100 69 Engine 11 | . 14 14 14 14 8 Core 2 | . . . . . 8 Leg 22 | . 18 28 28 28 17 Wheel 1 | . 10 . . . . Device 11 | . 10 14 14 14 8 Storage 12 | . 14 14 14 14 8 Energy Gun 23 | . 22 28 28 28 17 Peak Build Rating 19 | 6 9 9 11 9 19 Average Rating 10 | 3 7 8 9 9 14 On Entrance 6 | . 6 8 9 9 9 Avg Prop Armor Cover (%) . | . . . . . . Naked Turns 2 | . . . . . 2 Heaviest Build 28 | 14 16 16 21 16 28 Greatest Support 27 | 20 20 20 20 20 27 Greatest Overweight (x) 1 | . . . 1 . 1 Average Overweight (x) . | . . . . . . Largest Inventory Capacity 10 | 8 8 8 10 8 8 Average Capacity 7 | 7 8 8 8 8 7 Most Carried 8 | 5 8 8 8 8 8 Average Carried 7 | 2 6 7 7 8 7 Final Capacity 8 | 8 8 8 8 8 5 Final Carried 8 | 3 8 8 8 8 4 Class Distribution -------------------- 95% | Mutant 4% | Skirmisher Dominant Class ---------------- Mutant | -10/Materials Mutant | -10/Mines Mutant | -10/Exiles Mutant | -9/Mines Mutant | -8/Materials Resources | -11 -10 -10 -10 -9 -8 ----------- Run | Yrd Mat Min Exi Min Mat Matter Collected 488 | 239 61 . . 40 148 Remotely . | . . . . . . Salvage Created 332 | . 92 . . . 240 Parts 15 | . 4 . . . 11 Haulers Intercepted . | . . . . . . Recyclers Shooed . | . . . . . . Parts Field Recycled . | . . . . . . Retrieved Matter . | . . . . . . Parts Self-Destructed . | . . . . . . Prevented . | . . . . . . Parts Restored . | . . . . . . Kills | -11 -10 -10 -10 -9 -8 ------- Run | Yrd Mat Min Exi Min Mat Combat Hostiles Destroyed 10 | . 3 . . . 7 Guns 9 | . 3 . . . 6 Cannons 1 | . . . . . 1 Classes Destroyed 2 | . 1 . . . 1 Swarmer 3 | . . . . . 3 Grunt 7 | . 3 . . . 4 Best Kill Streak 3 | . 2 . . . 3 Combat Bots Only 3 | . 2 . . . 3 Max Kills in Single Turn 1 | . 1 . . . 1 Gunslinging . | . . . . . . Exploded . | . . . . . . Melee . | . . . . . . Uniques/NPCs Destroyed . | . . . . . . Combat | -11 -10 -10 -10 -9 -8 -------- Run | Yrd Mat Min Exi Min Mat Hostile Shots Fired 201 | . 15 . . . 186 Missed 67 | . 6 . . . 61 Hits 134 | . 9 . . . 125 Projectile 134 | . 9 . . . 125 AOE 1 | . . . . . 1 Critical Strikes 3 | . . . . . 3 Damage Taken 1620 | . 99 . . . 1521 Core 590 | . 33 . . . 557 Absorbed by Shields . | . . . . . . Core Remaining (%) 93 | 100 . . . 86 . Volleys Fired 32 | . 7 1 . . 24 Largest 3 | . 2 2 . . 3 Hottest 168 | . 105 105 . . 168 Shots Fired 49 | . 14 2 . . 33 Gun 44 | . 14 2 . . 28 Cannon 5 | . . . . . 5 Launcher . | . . . . . . Special . | . . . . . . Kinetic . | . . . . . . Thermal 26 | . 7 1 . . 18 Explosive . | . . . . . . Electromagnetic 23 | . 7 1 . . 15 Robot Hit Streak 10 | . 10 2 . . 6 Robot Miss Streak 7 | . 7 2 . . 3 Penetration Max . | . . . . . . Secondary Targets . | . . . . . . Shots Hit Robots 34 | . 10 1 . . 23 Core Hits 33 | . 11 3 . . 19 Critical Kills . | . . . . . . Critical Parts Destroyed . | . . . . . . Critical Strikes . | . . . . . . Melee Attacks . | . . . . . . Impact . | . . . . . . Slashing . | . . . . . . Piercing . | . . . . . . Sneak Attacks . | . . . . . . Combat Hostiles . | . . . . . . Follow-up Attacks . | . . . . . . Damage Inflicted 546 | . 146 18 . . 382 Guns 436 | . 146 18 . . 272 Cannons 105 | . . . . . 105 Explosions . | . . . . . . Melee . | . . . . . . Ramming 5 | . . . . . 5 Kinetic . | . . . . . . Thermal 287 | . 94 18 . . 175 Explosive . | . . . . . . Electromagnetic 254 | . 52 . . . 202 Impact . | . . . . . . Slashing . | . . . . . . Piercing . | . . . . . . Highest Corruption . | . . . . . . Average Corruption . | . . . . . . Corruption Purged . | . . . . . . Corruption Blocked . | . . . . . . Overload Shots . | . . . . . . Overflow Damage . | . . . . . . Projectiles . | . . . . . . Explosions . | . . . . . . Melee . | . . . . . . Knockbacks . | . . . . . . Impact . | . . . . . . Kinetic . | . . . . . . Secondary . | . . . . . . Self-Inflicted Damage . | . . . . . . Shots . | . . . . . . Rammed . | . . . . . . Targets Rammed 2 | . . . . . 2 Kicked 2 | . . . . . 2 Crushed . | . . . . . . Highest Temperature 375 | . 60 15 . . 375 Average Temperature 120 | . 27 10 . . 152 Received Heat Transfer 660 | . 54 . . . 606 Effects 8 | . . . . . 8 Shutdowns 1 | . . . . . 1 Energy Bleed 1 | . . . . . 1 Interference 4 | . . . . . 4 Matter Decay 1 | . . . . . 1 Damage (minor) 1 | . . . . . 1 Siege Activations . | . . . . . . Martial Activations . | . . . . . . Shielding Activations . | . . . . . . Robots Disrupted . | . . . . . . Combat Hostiles . | . . . . . . Robots Corrupted . | . . . . . . Combat Hostiles . | . . . . . . Parts Fried . | . . . . . . Impact Corruptions . | . . . . . . Robots Melted . | . . . . . . Combat Hostiles . | . . . . . . Parts Melted 1 | . . . . . 1 Heat Transferred 474 | . 110 20 . . 344 Parts Sabotaged . | . . . . . . Parts Stolen . | . . . . . . Parts Stripped . | . . . . . . Power Chain Reactions . | . . . . . . Alert | -11 -10 -10 -10 -9 -8 ------- Run | Yrd Mat Min Exi Min Mat Maximum Alert Level . | . . . . . . Low Security (%) 100 | 100 100 100 . 100 100 Level 1 . | . . . . . . Level 2 . | . . . . . . Level 3 . | . . . . . . Level 4 . | . . . . . . Level 5 . | . . . . . . High Security . | . . . . . . Max Security . | . . . . . . Peak Influence 161 | . 60 3 . . 161 Initial 3 | . . 3 . . . Average 9 | . 16 . . . 15 Influence Increases 382 | . 70 . . . 312 Destroy 0b10 Robot/C 200 | . 60 . . . 140 Destroy Leader 30 | . 10 . . . 20 Successful Hack 2 | . . . . . 2 Lose Combat Pursuer 150 | . . . . . 150 Influence Decreases 307 | . 60 10 . . 237 Entered New Map 7 | . . 7 . . . Time Decay 180 | . 60 3 . . 117 Lost Part 120 | . . . . . 120 Squads Dispatched 5 | . 2 . . . 3 Investigation 1 | . 1 . . . . Extermination . | . . . . . . Reinforcement 4 | . 1 . . . 3 Assault . | . . . . . . Garrison . | . . . . . . Intercept . | . . . . . . Searches Triggered . | . . . . . . Construction Impeded . | . . . . . . Haulers Reinforced . | . . . . . . Active Scanning Responses . | . . . . . . Cargo Convoy Interrupts . | . . . . . . Stealth | -11 -10 -10 -10 -9 -8 --------- Run | Yrd Mat Min Exi Min Mat Distress Signals 5 | . 1 1 . . 3 Communications Jammed . | . . . . . . Distress Signals . | . . . . . . Times Spotted 32 | . 4 1 . . 27 Peak Tracking Total 14 | . 3 1 . . 14 Tactical Retreats 4 | . . . . . 4 Traps | -11 -10 -10 -10 -9 -8 ------- Run | Yrd Mat Min Exi Min Mat Traps Triggered 1 | . 1 . . . . Indirectly . | . . . . . . Trap Hack Attempts . | . . . . . . Triggered . | . . . . . . Disarmed . | . . . . . . Reprogrammed . | . . . . . . Reused . | . . . . . . Traps Extracted . | . . . . . . Installed . | . . . . . . Triggered . | . . . . . . Machines | -11 -10 -10 -10 -9 -8 ---------- Run | Yrd Mat Min Exi Min Mat Machines Disabled . | . . . . . . Max in Single Turn . | . . . . . . Machines Repaired . | . . . . . . Machines Dismantled . | . . . . . . Machines Sabotaged . | . . . . . . Overloaded Fab Kills . | . . . . . . Hacking | -11 -10 -10 -10 -9 -8 --------- Run | Yrd Mat Min Exi Min Mat Machines Accessed 9 | . 1 . 4 1 3 Terminals 3 | . . . . 1 2 Fabricators . | . . . . . . Repair Stations . | . . . . . . Recycling Units 1 | . 1 . . . . Scanalyzers 1 | . . . . . 1 Garrison Access . | . . . . . . Total Hacks 61 | . 4 . 41 2 14 Successful 59 | . 3 . 41 2 13 Failed 1 | . 1 . . . . Catastrophic . | . . . . . . Database Lockouts 1 | . . . . . 1 Manual 3 | . . . 3 . . Terminals 5 | . . . . 2 3 Fabricators . | . . . . . . Repair Stations . | . . . . . . Recycling Units 4 | . 4 . . . . Scanalyzers 11 | . . . . . 11 Garrison Access . | . . . . . . Terminal Hacks 46 | . . . 41 2 3 Record 45 | . . . 41 2 2 Locate Traps 1 | . . . . . 1 Fabricator Hacks . | . . . . . . Repair Station Hacks . | . . . . . . Recycling Unit Hacks 3 | . 3 . . . . Recycle Component 1 | . 1 . . . . Process 1 | . 1 . . . . Report Inventory 1 | . 1 . . . . Scanalyzer 10 | . . . . . 10 Insert Component 3 | . . . . . 3 Analyze 5 | . . . . . 5 Retrieve Study 2 | . . . . . 2 Garrison Access Hacks . | . . . . . . Unauthorized Hacks . | . . . . . . Terminals . | . . . . . . Fabricators . | . . . . . . Repair Stations . | . . . . . . Recycling Units . | . . . . . . Scanalyzers . | . . . . . . Garrison Access . | . . . . . . Data Cores Recovered . | . . . . . . Used . | . . . . . . Hacking Detections 1 | . . . . 1 . Full Trace Events . | . . . . . . Feedback Events . | . . . . . . Feedback Blocked . | . . . . . . Robot Schematics Acquired . | . . . . . . Robots Built . | . . . . . . Authchips . | . . . . . . Time . | . . . . . . Total Robot Build Rating . | . . . . . . Part Schematics Acquired 3 | . . . . . 3 Parts Built . | . . . . . . Authchips . | . . . . . . Time . | . . . . . . Total Part Build Rating . | . . . . . . Part Studies Acquired 2 | . . . . . 2 Parts Repaired . | . . . . . . Time . | . . . . . . Parts Recycled 1 | . 1 . . . . Recycled Matter 31 | . 31 . . . . Retrieved Matter . | . . . . . . Retrieved Components . | . . . . . . Parts Scanalyzed 3 | . . . . . 3 Part Schematics Acquired 3 | . . . . . 3 Parts Damaged . | . . . . . . Bothacking | -11 -10 -10 -10 -9 -8 ------------ Run | Yrd Mat Min Exi Min Mat Used RIF Installer . | . . . . . . Robots Hacked . | . . . . . . Non-combat . | . . . . . . Combat . | . . . . . . Robot Hacks Applied . | . . . . . . Relay Couplers Released . | . . . . . . Fabnet Peak Effective % . | . . . . . . Robots Rewired . | . . . . . . Allies Hacked . | . . . . . . Hacks Repelled . | . . . . . . Allies | -11 -10 -10 -10 -9 -8 -------- Run | Yrd Mat Min Exi Min Mat Total Allies . | . . . . . . Largest Group . | . . . . . . Highest-Rated Group . | . . . . . . Highest-Rated Ally . | . . . . . . Total Orders . | . . . . . . Ally Attacks . | . . . . . . Total Damage . | . . . . . . Kills . | . . . . . . Allies Corrupted . | . . . . . . Allies Melted . | . . . . . . Intel | -11 -10 -10 -10 -9 -8 ------- Run | Yrd Mat Min Exi Min Mat Active Infowar (turns) 5 | . . . . . 5 Sensors 5 | . . . . . 5 Robot Analysis Total . | . . . . . . Derelict Logs Recovered 2 | . . . . 2 . Drone Launches . | . . . . . . Drone Recoveries . | . . . . . . Exploration | -11 -10 -10 -10 -9 -8 ------------- Run | Yrd Mat Min Exi Min Mat Turns Passed 2083 | 59 279 96 427 516 706 Spaces Moved 1393 | 58 235 70 347 407 276 Core 22 | 15 . . . . 7 Treads . | . . . . . . Legs 1214 | . 121 70 347 407 269 Wheels 157 | 43 114 . . . . Hover . | . . . . . . Flight . | . . . . . . Fastest Speed 50 | 50 80 120 120 120 100 Average Speed 116 | 72 100 120 120 120 127 Slowest Speed 195 | 80 120 120 190 120 195 Overloaded Moves . | . . . . . . Propulsion Burnouts . | . . . . . . Robots Hopped . | . . . . . . Potential Cave-ins . | . . . . . . Cave-ins Triggered . | . . . . . . Exploration Rate (%) 38 | 3 29 33 63 78 27 Regions Visited 5 Branch Regions 3 Pre-discovered Areas 2 | . . . 1 1 . Known Exits Taken . | . . . . . . Unknown Exits Taken 5 | 1 1 1 1 1 . Scrap Searched 3 | . . 1 . 2 . Spaces Dug . | . . . . . . Terrain Destroyed . | . . . . . . Melee . | . . . . . . Projectile . | . . . . . . AOE . | . . . . . . Terrain Rammed . | . . . . . . Walls Destroyed . | . . . . . . Machines Disabled . | . . . . . . Actions | -11 -10 -10 -10 -9 -8 --------- Run | Yrd Mat Min Exi Min Mat Total 1812 | 75 264 81 357 434 601 Wait 319 | 1 8 7 . 28 275 Move 1388 | 57 234 69 346 406 276 Hop . | . . . . . . Pick Up 31 | 10 9 2 3 . 7 Fast Attach . | . . . . . . Attach 14 | 6 1 . . . 7 Detach 1 | . . . . . 1 Swap 11 | . 3 . 4 . 4 Drop 13 | 1 2 2 3 . 5 Fire 32 | . 7 1 . . 24 Melee . | . . . . . . Ram . | . . . . . . Kick 2 | . . . . . 2 Crush . | . . . . . . Escape Stasis . | . . . . . . Rewire 1 | . . . 1 . . Trap . | . . . . . . Miscellaneous . | . . . . . . Route ------- -11/Scrapyard -10/Materials (discovered 2 exits: [*Mat] / [*Min]) -10/Mines -10/Exiles -9/Mines -8/Materials History --------- Turn | Location | Event 10 | -11/Scrapyard | Discovered new exit (range 14) 60 | -11/Scrapyard | Entered Materials 155 | -10/Materials | Discovered new exit (range 12) 297 | -10/Materials | Discovered new exit (range 14) 305 | -10/Materials | Build established: Mutant 308 | -10/Materials | Met 8R-AWN 339 | -10/Materials | Entered Mines 340 | -10/Mines | Followed 8R-AWN into the Mines 403 | -10/Mines | Assembled infested the area 408 | -10/Mines | Assisted by a Guerilla fighting off Assembled 417 | -10/Mines | Received a Rocket Launcher from a helpful Derelict 430 | -10/Mines | Discovered new exit (range 5) 435 | -10/Mines | Entered Exiles 469 | -10/Exiles | Discovered new exit (range 15) 497 | -10/Exiles | Welcomed by 8R-AWN 519 | -10/Exiles | Met EX-HEX 591 | -10/Exiles | Met EX-DEC 630 | -10/Exiles | Learned location of Zion (-7) 660 | -10/Exiles | Met EX-BIN 678 | -10/Exiles | Aligned with FarCom system 680 | -10/Exiles | Given EX-Vault access code 817 | -10/Exiles | Learned about 8R-AWN's background 862 | -10/Exiles | Entered Mines 876 | -9/Mines | Learned 2 Materials zone layouts 893 | -9/Mines | Met a Derelict bent on vengeance 1315 | -9/Mines | Discovered new exit (range 7) 1321 | -9/Mines | Learned location of Storage (-9) 1378 | -9/Mines | Entered Materials 1378 | -8/Materials | Evolved 4 slots: Power x2, Utility x1, Weapon x1 1562 | -8/Materials | Central database locked down 2069 | -8/Materials | Core integrity fell below 50% 2075 | -8/Materials | Core integrity fell below 20% 2084 | -8/Materials | Destroyed by S-10 Pest via exploding Fusion Modulator Last Messages --------------- blocked, but can have serious negative consequences. [Achievement: For Emergencies Only] Spread Laser destroyed. R-06 Scavenger collects Flight Unit. Kicked G-47 Trooper. Aluminum Leg destroyed. Acquired 10 matter. EM Pulse Cannon destroyed. Acquired 10 matter. Lgt. Nuclear Core melted. G-47 Trooper destroyed. Particle Gun+ destroyed. R-06 Scavenger collects Flight Unit. Sml. Storage Unit destroyed. Slug penetrates Wall. Electrolysis Chamber disabled. Aluminum Leg destroyed. Fusion Modulator explodes. [Achievement: First Step to Greatness] Map ----- +----------------------------------------------------+ | | | | | | | | | | | | | | | | | | | | | | | | | ???????????????#####?????????????????????????????? | | ???????????????# #????????????????????????????? | | ???????????????# #????????????????????????????? | | ???????????????# ] ##################???????????? | | ???????????????# / *%g[%% #???????????? | | ?????????""????# #####% #???????????? | | ????????""" ###+### g #???????????? | | ?????????? gg/h g #???????????? | | ???????????????### g!##############??????????? | | ?????????????????# g############# ???H?????? | | ?????????????????# s + ??????????? | | ?????????????????# #??????????????? | | ??????????Y??????# u #??????????????? | | ?????????????????# @ "" #??????????????? | | ?????????????????# """ #??????????????? | | ?????????????????# r""" #??????????????? | | ?????????????????# [ #???????? #???? | | ?????????????????# = ######## #???? | | ????????????????"" """ * #???? | | ????????????????"T """ * #???? | | ???????????????#"" """o % +???? | | ????????????????##u = #???? | | ?????????????????# ##???? | | ?????????????????# ############ ########## #????? | | ?????????????????# ???????????#k#???????????????? | | ?????????????????? ???????????# #???????????????? | | ???????????????????????????????# #???????????????? | | ???????????????????????????????# #???????????????? | | ???????????????????????????????# #???????????????? | | ???????????????????????????????# #???????????????? | | ???????????????????????????????# #???????????????? | | ???????????????????????????????# #???????????????? | | ???????????????????????????????# #???????????????? | | ?????????????????????????#######/###?????????????? | | ?????????????????????????# #?????????????? | | ?????????????????????????# """ """ #?????????????? | | ?????????????????????????# "T """ #?????????????? | | ?????????????????????????# """ """ #?????????????? | +----------------------------------------------------+ Best States ------------- Heat Dissipation 41 Energy Generation 19 Energy Capacity 310 Matter Stores 300 Matter Capacity 300 Sight Range 16 Terrain Scan Density 10 Evasion (%) 55 Item Schematics ----------------- EM Pulse Cannon | -8/Materials | Scanalyzed Particle Gun | -8/Materials | Scanalyzed Titanium Leg | -8/Materials | Scanalyzed Robot Schematics ------------------ None Fabricated ------------ Nothing Repaired ---------- Nothing Studied --------- EM Pulse Gun | -8/Materials | Hacked Particle Gun | -8/Materials | Hacked Alien Tech Used ----------------- None Achievements -------------- Crack Shot DATA ERROR: Steam Global Achievement% First Step to Greatness Follow The Leader For Emergencies Only I Have A Map? Item+ Librarian Sixth Sense Storm Trooper There's More Where That Came From Tourist Uninvited Guest Challenges ------------ None Game ------ Seed TransportCobblerStatue Manual? 0 Play Time 01:31:41 Cumulative 1.4 hours Start 2025.10.28 @ 17:58:49 End 2025.10.28 @ 20:27:29 Sessions 1 Manual Loads 0 Difficulty Rogue Special Mode None Game No. 2 Rogue 2 Adventurer 0 Explorer 0 Win Type - Total 0 Types 0/0/0/0/0/0/0/0/0/0 Lore% 4 Gallery% 1 Achievement% 2 Wizard Run 0 Options --------- Layout 2 ASCII 0 Keyboard 1 Movement Numpad Keybinds 0 Fullscreen 2 Font 32/SmallcapsGlow Map View 50x44 Zoom Use 0% Tactical HUD 0 Map Filters NONE Filters NONE Steam 1 RUN: 4464b02d-0771-4f55-b42a-b3fe7794580a